[Event "Romanian Open 2021"]
[Site "Alba Iulia"]
[Date "2021.11.25"]
[Round "7.7"]
[White "Antal, Hunor-Zoltan"]
[Black "Negrean, Andrei"]
[Result "1-0"]
[ECO "B48"]
[WhiteElo "2111"]
[BlackElo "1847"]
[Annotator "ChessBase"]
[PlyCount "115"]
[EventDate "2021.11.21"]
[EventType "swiss"]
[EventCountry "ROU"]
[SourceTitle "playchess.com"]
[Source "ChessBase"]
[SourceQuality "1"]
[TimeControl "5400+30"]

1. e4 {[%emt 0:00:09]} c5 {[%emt 0:00:20]} 2. Nf3 {[%emt 0:00:05]} Nc6 {[%emt 0:00:27]} 3. d4 {[%emt 0:00:06]} cxd4 {[%emt 0:00:18]} 4. Nxd4 {[%emt 0:00:02]} Qc7 {[%emt 0:01:01]} 5. Nc3 {[%emt 0:00:08]} e6 {[%emt 0:00:49]} 6. Be3 {[%emt 0:00:05]} a6 {[%emt 0:02:28]} 7. Qf3 {[%emt 0:00:45]} Bd6 {[%emt 0:16:19]} 8. O-O-O {[%emt 0:01:32]} Be5 {[%emt 0:00:51]} 9. Nxc6 {[%emt 0:01:05]} bxc6 {[%emt 0:05:20]} 10. Bd4 {[%emt 0:03:26]} Nf6 {[%emt 0:09:56]} 11. Bxe5 {[%emt 0:01:52]} Qxe5 {[%emt 0:00:16]} 12. Qg3 {[%emt 0:00:06]} Qxg3 {[%emt 0:01:50]} 13. hxg3 {[%emt 0:00:10]} d5 {[%emt 0:05:11]} 14. Bd3 {[%emt 0:01:54]} Bb7 {[%emt 0:10:25]} 15. f3 {[%emt 0:01:00]} Nd7 {[%emt 0:06:33]} 16. g4 {[%emt 0:11:31]} Nb6 {[%emt 0:15:19]} 17. g5 {[%emt 0:07:51]} d4 {[%emt 0:09:56]} 18. Nb1 {[%emt 0:00:11]} Kf8 {[%emt 0:07:25]} 19. Rh4 {[%emt 0:00:46]} g6 {[%emt 0:00:45]} 20. Rdh1 {[%emt 0:00:10]} Kg7 {[%emt 0:01:03]} 21. Nd2 {[%emt 0:00:12]} c5 {[%emt 0:02:27]} 22. b3 {[%emt 0:02:19]} e5 {[%emt 0:01:53]} 23. a4 {[%emt 0:00:47]} a5 {[%emt 0:00:30]} 24. g3 {[%emt 0:01:01]} Ba6 {[%emt 0:00:32]} 25. Bxa6 {[%emt 0:02:56]} Rxa6 {[%emt 0:00:03]} 26. f4 {[%emt 0:00:07]} c4 {[%emt 0:00:56]} 27. f5 {[%emt 0:02:07]} c3 {[%emt 0:00:33]} 28. f6+ {[%emt 0:00:06]} Kg8 {[%emt 0:00:13]} 29. Nf3 {[%emt 0:00:26]} Nd7 {[%emt 0:00:11]} 30. Kd1 {[%emt 0:01:07]} Re6 {[%emt 0:00:58]} 31. Ke2 {[%emt 0:00:19]} Nc5 {[%emt 0:00:28]} 32. Ne1 {[%emt 0:01:33]} Rb6 {[%emt 0:00:40]} 33. Nd3 {[%emt 0:00:18]} Nxd3 {[%emt 0:00:20]} 34. Kxd3 {[%emt 0:00:01]} Rc6 {[%emt 0:00:35]} 35. g4 {[%emt 0:00:25]} Rc5 {[%emt 0:00:37]} 36. Rb1 {[%emt 0:00:17]} h6 {[%emt 0:00:30]} 37. b4 {[%emt 0:00:39]} axb4 {[%emt 0:00:23]} 38. Rxb4 {[%emt 0:00:01]} Rc8 {[%emt 0:00:33]} 39. a5 {[%emt 0:02:05]} hxg5 {[%emt 0:00:29]} 40. Rxh8+ {[%emt 0:00:15]} Kxh8 {[%emt 0:00:03]} 41. Rb5 {[%emt 0:00:47]} Re8 {[%emt 0:01:00]} 42. a6 {[%emt 0:02:29]} Ra8 {[%emt 0:00:19]} 43. Rb6 {[%emt 0:00:06]} Kg8 {[%emt 0:00:41]} 44. Kc4 {[%emt 0:00:10]} Rc8+ {[%emt 0:00:32]} 45. Kb5 {[%emt 0:07:11]} Ra8 {[%emt 0:00:28]} 46. Rd6 {[%emt 0:00:15]} Rb8+ {[%emt 0:00:32]} 47. Kc6 {[%emt 0:00:13]} Rb2 {[%emt 0:00:21]} 48. a7 {[%emt 0:00:04]} Ra2 {[%emt 0:00:22]} 49. Rd8+ {[%emt 0:00:11]} Kh7 {[%emt 0:00:03]} 50. a8=Q {[%emt 0:00:17]} Rxa8 {[%emt 0:00:06]} 51. Rxa8 {[%emt 0:00:04]} d3 {[%emt 0:00:06]} 52. cxd3 {[%emt 0:00:08]} c2 {[%emt 0:00:04]} 53. Ra1 {[%emt 0:00:05]} Kg8 {[%emt 0:00:12]} 54. Rh1 {[%emt 0:00:07]} c1=Q+ {[%emt 0:00:16]} 55. Rxc1 {[%emt 0:00:04]} Kf8 {[%emt 0:00:04]} 56. Rh1 {[%emt 0:00:05]} Kg8 {[%emt 0:00:05]} 57. Kd6 {[%emt 0:00:10]} Kf8 {[%emt 0:00:05]} 58. Rh8# {[%emt 0:00:04]} 1-0

[Event "Romanian Open 2021"]
[Site "Alba Iulia"]
[Date "2021.11.25"]
[Round "7.9"]
[White "Arion, Ilie"]
[Black "Maria, Lia-Alexandra"]
[Result "0-1"]
[ECO "A64"]
[WhiteElo "1758"]
[BlackElo "1784"]
[Annotator "NA"]
[PlyCount "98"]
[EventDate "2021.11.21"]
[EventType "swiss"]
[EventCountry "ROU"]
[SourceTitle "playchess.com"]
[Source "ChessBase"]
[SourceQuality "1"]
[TimeControl "5400+30"]

1. d4 {[%emt 0:00:55]} Nf6 {[%emt 0:00:07]} 2. c4 {[%emt 0:00:07]} e6 {[%emt 0:00:04]} 3. g3 {[%emt 0:00:15]} c5 {[%emt 0:00:07]} 4. d5 {[%emt 0:00:25]} exd5 {[%emt 0:00:31]} 5. cxd5 {[%emt 0:00:16]} d6 {[%emt 0:00:07]} 6. Bg2 {[%emt 0:00:44]} g6 {[%emt 0:00:36]} 7. Nf3 {[%emt 0:01:30]} Bg7 {[%emt 0:00:17]} 8. O-O {[%emt 0:00:28]} Nbd7 {[%emt 0:00:57]} 9. Nc3 {[%emt 0:00:40]} a6 {[%emt 0:02:05]} 10. a4 {[%emt 0:00:33]} O-O {[%emt 0:00:35]} 11. Nd2 {[%emt 0:00:48]} Re8 {[%emt 0:03:16]} 12. h3 {[%emt 0:03:01]} Qc7 {[%emt 0:01:32]} 13. Nc4 {[%emt 0:03:51]} Rb8 {[%emt 0:03:03]} 14. Qb3 {[%emt 0:08:11]} b6 {[%emt 0:02:15]} 15. e4 {[%emt 0:10:57]} Ne5 {[%emt 0:04:56]} 16. Nxe5 {[%emt 0:06:52]} dxe5 {[%emt 0:00:31]} 17. Qc4 {[%emt 0:03:27]} Bb7 {[%emt 0:05:11]} 18. Be3 {[%emt 0:04:50]} Nd7 {[%emt 0:02:18]} 19. f4 {[%emt 0:04:47]} Kh8 {[%emt 0:02:43]} 20. Rad1 {[%emt 0:02:09]} Qd6 {[%emt 0:01:27]} 21. f5 {[%emt 0:01:32]} Bc8 {[%emt 0:02:20]} 22. g4 {[%emt 0:03:33]} b5 {[%emt 0:00:53]} 23. Qd3 {[%emt 0:05:31]} b4 {[%emt 0:01:22]} 24. Ne2 {[%emt 0:00:41]} a5 {[%emt 0:00:30]} 25. Qd2 {[%emt 0:00:36]} Ba6 {[%emt 0:00:56]} 26. Rf2 {[%emt 0:01:04]} Nb6 {[%emt 0:00:58]} 27. Bh6 {[%emt 0:02:33]} Nc4 {[%emt 0:01:39]} 28. Bxg7+ {[%emt 0:00:36]} Kxg7 {[%emt 0:00:08]} 29. f6+ {[%emt 0:00:08]} Kh8 {[%emt 0:00:09]} 30. Qc1 {[%emt 0:03:28]} Nb6 {[%emt 0:01:29]} 31. Ng3 {[%emt 0:03:19]} Nxa4 {[%emt 0:02:37]} 32. Qh6 {[%emt 0:02:39]} Qf8 {[%emt 0:00:56]} 33. Qh4 {[%emt 0:01:16]} c4 {[%emt 0:00:52]} 34. Nf5 {[%emt 0:05:36]} gxf5 {[%emt 0:03:07]} 35. Rxf5 {[%emt 0:00:17]} c3 {[%emt 0:01:10]} 36. Rh5 {[%emt 0:00:23]} Qg8 {[%emt 0:00:09]} 37. Rg5 {[%emt 0:00:08]} c2 {[%emt 0:03:08]} 38. Rxg8+ {[%emt 0:01:13]} Rxg8 {[%emt 0:00:07]} 39. Rc1 {[%emt 0:02:10]} b3 {[%emt 0:00:26]} 40. Qh5 {[%emt 0:02:02]} Nxb2 {[%emt 0:06:01]} 41. Qxf7 {[%emt 0:00:42]} Nd3 {[%emt 0:01:36]} 42. Qe7 {[%emt 0:01:34]} b2 {[%emt 0:01:31]} 43. Rf1 {[%emt 0:00:54]} c1=Q {[%emt 0:01:30]} 44. f7 {[%emt 0:02:07]} Qh6 {[%emt 0:01:15]} 45. fxg8=Q+ {[%emt 0:00:54]} Rxg8 {[%emt 0:00:16]} 46. d6 {[%emt 0:00:28]} Qg5 {[%emt 0:03:26]} 47. Qxg5 {[%emt 0:02:14]} Rxg5 {[%emt 0:00:13]} 48. Rf8+ {[%emt 0:00:09]} Rg8 {[%emt 0:00:35]} 49. Rf1 {[%emt 0:00:15]} Nc1 {[%emt 0:00:23]} 0-1